bitfinex-derivatives/quotes_ETHF0:USTF0_20250115
["timestamp","ask_amount","ask_price","bid_price","bid_amount"]
[1736963464373,0.59816,3343.5,3343.4,0.59815]
[1736963464774,3.2078,3343.7,3343.2,0.4759]
[1736963465078,3.2078,3343.7,3343.6,0.59812]
[1736963465279,3.80591,3343.7,3343.6,0.59812]
[1736963465471,3.2078,3343.7,3343.2,0.4759]
[1736963465780,0.59814,3343.6,3343.5,0.59814]
[1736963467266,3.2078,3343.7,3343.2,0.4759]
[1736963467477,3.2078,3343.7,3343.6,0.59812]
[1736963468077,0.59811,3343.7,3343.6,0.59812]
[1736963468864,4.1443,3344.1,3343.4,0.477]
[1736963469068,4.1443,3344.1,3343.4,2.73204263]
[1736963469276,0.59813,3343.7,3343.6,0.59811]
[1736963469777,4.1443,3344.1,3343.4,2.73204263]
[1736963470173,0.59808,3344.0,3343.9,0.59805]
[1736963470370,0.5981,3343.9,3343.8,0.59807]
[1736963471682,0.59812,3343.8,3343.7,0.59809]
[1736963473381,0.59808,3343.9,3343.8,0.59807]
[1736963474885,4.1443,3344.1,3343.4,3.18714263]
[1736963475072,0.59814,3343.6,3343.5,0.59812]
[1736963477690,3.80591,3343.7,3343.6,0.59812]
[1736963479373,3.2078,3343.7,3343.6,0.59812]
[1736963480885,3.80591,3343.7,3343.6,0.59812]
[1736963481083,3.2078,3343.7,3343.4,3.96604263]
[1736963481279,0.59814,3343.5,3343.4,4.56418263]
[1736963481483,0.59813,3343.6,3343.5,0.59812]
[1736963482182,1.3708,3344.0,3343.5,1.49534]
[1736963482380,0.59807,3343.9,3343.8,2.85312263]
[1736963483184,3.2078,3344.1,3344.0,0.59805]
[1736963484089,3.80577,3344.5,3344.4,0.59796]
[1736963484889,3.80576,3344.5,3344.4,0.59796]
[1736963485290,0.59798,3344.4,3344.3,2.85302263]
[1736963486794,0.59798,3344.4,3344.3,2.25504263]
[1736963487293,0.598,3344.3,3344.2,1.234]
[1736963491693,0.59807,3343.9,3343.8,2.85312263]
[1736963491891,0.59807,3343.9,3343.8,2.25504263]
[1736963492393,1.54757,3343.9,3343.8,2.85313263]
[1736963492991,1.54757,3343.9,3343.8,2.25504263]
[1736963493695,0.9495,3343.9,3343.7,1.83209]
[1736963493896,0.59809,3343.8,3343.7,1.234]
[1736963494095,0.59809,3343.8,3343.7,1.83211]
[1736963495392,3.2078,3344.0,3343.7,1.234]
[1736963495695,0.59809,3343.9,3343.8,2.85311263]
[1736963496582,3.80586,3344.0,3343.9,0.59807]
[1736963496792,3.2078,3344.4,3344.3,0.598]
[1736963496988,0.59794,3344.7,3344.3,2.85304263]
[1736963497291,0.59794,3344.7,3344.6,2.85298263]
[1736963498294,0.59794,3344.7,3342.1,1.30886679]
[1736963498295,0.59834,3342.4,3342.1,1.30886679]
[1736963498590,0.59834,3342.4,3341.9,0.59843]
[1736963498591,2.25504263,3342.4,3341.9,31.87308262]
[1736963498793,0.59836,3342.3,3341.9,31.87308262]
[1736963499495,0.59836,3342.3,3342.2,54.73257643]
[1736963499886,3.2078,3342.6,3342.2,54.73257643]
[1736963500396,6.4549485,3342.4,3342.3,0.9378]
[1736963501792,0.59834,3342.4,3342.3,0.9378]
[1736963502392,3.2078,3342.6,3342.3,0.9378]
[1736963502594,0.59834,3342.4,3342.3,0.9378]
[1736963502792,0.59834,3342.4,3342.3,0.4561]
[1736963502991,0.59834,3342.4,3342.3,41.2561]
[1736963503395,3.2078,3342.6,3342.3,41.2561]
[1736963503596,0.59834,3342.4,3342.3,41.2561]
[1736963504496,1.49589,3342.4,3341.9,1.234]
[1736963504695,0.59841,3342.0,3341.9,1.234]
[1736963505105,0.59841,3342.0,3341.9,0.47302]
[1736963505405,3.2078,3342.1,3341.9,1.234]
[1736963505597,3.2078,3342.1,3341.7,0.9557]
[1736963505797,0.59843,3341.9,3341.8,1.234]
[1736963506103,3.2078,3342.1,3341.8,1.234]
[1736963506303,0.59843,3341.9,3341.8,1.234]
[1736963506495,0.59843,3341.9,3341.8,41.15101]
[1736963506696,0.59845,3341.8,3341.7,0.4668]
[1736963507001,0.59846,3341.7,3341.6,0.59073]
[1736963507197,3.2078,3341.7,3341.6,0.43886]
[1736963507399,3.80626,3341.7,3341.6,0.43886]
[1736963507702,3.80626,3341.7,3341.0,2.25504263]
[1736963507703,0.5987,3340.4,3340.3,13.9778]
[1736963507896,0.5987,3340.4,3340.3,12.004]
[1736963508301,2.99219,3341.9,3340.3,17.004]
[1736963508302,3.2078,3341.1,3340.3,17.004]
[1736963508597,3.2078,3341.1,3340.3,12.004]
[1736963508799,3.80639,3341.1,3340.3,15.2118]
[1736963508998,3.2078,3341.1,3340.4,0.4603]
[1736963509194,3.2078,3340.7,3340.3,10.77]
[1736963509400,3.2078,3340.7,3340.4,3.48904263]
[1736963509597,3.2078,3341.1,3340.5,1.234]
[1736963509799,3.80645,3340.7,3340.6,1.234]
[1736963509998,3.2078,3340.7,3339.2,11.33115368]
[1736963510297,0.59889,3339.3,3339.2,11.33115368]
[1736963510702,0.59889,3339.3,3339.2,10.20689368]
[1736963510903,0.59889,3339.3,3338.2,1.7163]
[1736963510904,3.34231037,3339.3,3338.8,40.8]
[1736963511100,3.34231037,3339.3,3338.2,1.7163]
[1736963511101,5.46284263,3338.9,3338.2,1.234]
[1736963511302,4.83955037,3339.3,3338.1,13.93257643]
[1736963511303,0.59909,3338.2,3338.1,13.93257643]
[1736963512306,0.59909,3338.2,3337.6,40.8]
[1736963512609,3.2078,3337.7,3337.6,40.8]
[1736963512812,3.2078,3338.1,3337.6,42.035]
[1736963513006,3.2078,3337.7,3337.6,42.485]
[1736963513408,3.2078,3337.7,3337.6,50.41478795]
[1736963514010,3.2078,3337.7,3337.6,44.17978795]
[1736963514213,3.2078,3337.7,3337.6,40.8]
[1736963514608,3.80698,3337.7,3337.6,40.8]
[1736963514909,3.2078,3337.7,3337.6,43.72978795]
[1736963516008,0.59913,3338.1,3337.6,43.72978795]
[1736963516009,3.2078,3337.8,3337.6,43.72978795]
[1736963516611,3.2078,3337.8,3337.6,2.92978795]
[1736963517115,3.2078,3337.8,3337.4,1.235]
[1736963517116,3.80696,3337.8,3337.7,40.8]
[1736963517416,3.2078,3337.8,3337.7,40.8]
[1736963518114,3.2078,3337.8,3337.7,41.39918]
[1736963518414,3.2078,3337.8,3337.7,40.8]
[1736963519217,3.2078,3337.8,3337.7,41.39918]
[1736963519608,3.2078,3338.2,3338.0,0.59912]
[1736963519808,3.2078,3338.2,3337.9,0.59913]
[1736963520016,3.2078,3338.2,3337.8,2.92978795]
[1736963520413,3.2078,3338.6,3337.9,3.2078]
[1736963520607,3.2078,3338.6,3338.5,0.59904]
[1736963521312,0.9277,3339.4,3338.5,0.59904]
[1736963521313,0.59896,3339.0,3338.5,40.8]
[1736963521515,3.80674,3339.1,3338.8,0.59898]
[1736963522015,0.59895,3339.0,3338.8,0.59898]
[1736963522218,0.9277,3339.4,3338.8,0.59897]
[1736963522514,3.2078,3339.1,3338.7,0.599]
[1736963522711,3.2078,3339.1,3338.5,40.8]
[1736963522912,1.06458,3339.4,3339.2,0.59891]
[1736963523118,1.06458,3339.4,3338.8,3.2078]
[1736963523119,0.5989,3339.3,3339.1,0.59892]
[1736963523319,0.4657,3339.4,3339.3,0.59889]
[1736963523620,0.4657,3339.4,3338.8,3.2078]
[1736963523813,1.06458,3339.4,3339.2,0.5989]
[1736963524117,0.4657,3339.4,3338.5,42.29757]
[1736963524318,3.2078,3339.2,3338.5,40.8]
[1736963524515,0.59899,3338.8,3338.6,0.59901]
[1736963525120,0.59896,3339.0,3338.7,0.59898]
[1736963525315,0.59897,3338.9,3338.7,0.59898]
[1736963525613,3.2078,3339.2,3338.5,40.8]
[1736963525814,3.2078,3339.2,3338.6,2.92978795]
[1736963526018,0.59896,3339.0,3338.7,0.59899]
[1736963526214,3.2078,3339.2,3338.6,2.92978795]
[1736963526614,3.80673,3339.2,3338.6,2.92978795]
[1736963526918,3.2078,3339.2,3339.1,0.59893]
[1736963528422,3.2078,3339.2,3339.0,1.259]
[1736963528622,3.80672,3339.2,3339.0,1.259]
[1736963528919,3.2078,3339.2,3339.0,1.259]
[1736963529127,0.59893,3339.1,3339.0,1.259]
[1736963529417,0.59893,3339.1,3338.4,3.6705]
[1736963529418,1.49737,3339.1,3338.4,3.2078]
[1736963529726,1.49737,3339.1,3338.0,0.00360312]
[1736963529727,0.59907,3338.4,3338.2,0.59908]
[1736963529923,0.59901,3338.7,3338.5,0.59903]
[1736963530117,0.59901,3338.7,3338.2,40.8]
[1736963530118,0.9437,3339.0,3338.4,3.2078]
[1736963530519,0.59898,3338.9,3338.7,0.59899]
[1736963530724,1.54266,3339.0,3338.4,3.2078]
[1736963530925,0.59897,3338.9,3338.8,0.59897]
[1736963531225,0.4853,3339.0,3338.4,3.2078]
[1736963531423,0.59898,3338.8,3338.7,0.59899]
[1736963531622,0.59902,3338.7,3338.6,0.59902]
[1736963531820,0.59902,3338.6,3338.5,0.59903]
[1736963532131,0.4853,3339.0,3338.4,3.2078]
[1736963532429,0.59904,3338.5,3338.4,3.2078]
[1736963532619,0.59904,3338.5,3338.3,1.85806]
[1736963532918,1.98268,3339.0,3338.0,0.00360312]
[1736963532919,3.2078,3338.8,3338.0,0.00360312]
[1736963533223,3.80691,3338.1,3338.0,0.00360312]
[1736963533926,3.2078,3338.5,3338.0,0.00360312]
[1736963534123,0.59905,3338.5,3338.4,0.59905]
[1736963534326,3.2078,3338.9,3338.2,1.259]
[1736963534624,3.2078,3338.9,3338.2,2.7567]
[1736963534825,0.59898,3338.8,3338.7,0.59899]
[1736963535025,3.80677,3338.9,3338.8,0.59898]
[1736963535222,3.80677,3338.9,3338.2,1.259]
[1736963535223,0.59903,3338.6,3338.2,1.259]
[1736963535425,0.59903,3338.6,3338.5,0.59902]
[1736963535727,0.59903,3338.6,3338.0,0.60271312]
[1736963535728,0.59911,3338.1,3338.0,0.60271312]
[1736963535927,0.59911,3338.1,3338.0,0.00360312]
[1736963536229,0.59911,3338.1,3338.0,0.60273312]
[1736963536416,3.2078,3338.4,3338.0,0.00360312]
[1736963536625,3.2078,3338.4,3338.3,0.59907]
[1736963536822,3.80685,3338.4,3338.3,0.59907]
[1736963537021,4.36895937,3338.4,3338.3,0.59907]
[1736963537220,3.76990937,3338.4,3338.0,0.00360312]
[1736963537422,0.5991,3338.2,3338.1,0.5991]
[1736963537631,3.80686,3338.4,3338.3,0.59907]
[1736963537928,3.80685,3338.4,3338.3,0.59907]
[1736963538123,3.2078,3338.4,3338.2,1.85808]
[1736963538328,0.59907,3338.3,3338.2,1.85808]
[1736963538525,3.80687,3338.4,3338.2,1.259]
[1736963538730,0.59907,3338.3,3338.2,1.85808]
[1736963538926,0.59907,3338.3,3338.2,1.259]
[1736963539128,3.2078,3338.4,3338.2,1.85809]
[1736963539435,0.54903277,3338.3,3338.2,1.85809]
[1736963539631,1.14810277,3338.3,3338.2,1.85809]
[1736963540128,0.54903277,3338.3,3338.2,1.259]
[1736963540333,1.14810277,3338.3,3338.2,1.259]
[1736963540835,0.59911,3338.1,3338.0,0.00360312]
[1736963548834,1.4979,3337.9,3337.4,3.2078]
[1736963549136,0.59939,3336.6,3336.5,0.59938]
[1736963549338,0.59939,3336.6,3336.5,41.39938]
[1736963549832,0.59936,3336.8,3336.7,0.59935]
[1736963550035,4.70607,3337.1,3336.5,40.8]
[1736963550236,3.2078,3337.1,3336.5,40.8]
[1736963550433,0.451,3337.4,3336.8,1.49836]
[1736963550633,0.451,3337.4,3336.5,40.8]
[1736963550634,3.2078,3337.8,3337.1,6.13758795]
[1736963550839,0.59921,3337.6,3337.5,0.59919]
[1736963551434,3.2078,3337.8,3337.5,40.8]
[1736963551629,3.2078,3337.8,3337.7,0.59918]
[1736963551827,0.59909,3338.2,3338.1,0.59911]
[1736963552144,0.59908,3338.3,3338.2,0.59907]
[1736963552438,3.2078,3338.5,3337.7,1.04608]
[1736963552938,3.2078,3338.5,3337.6,2.2319]
[1736963553141,0.59918,3337.7,3337.6,2.83109]
[1736963553335,0.59918,3337.7,3337.6,2.2319]
[1736963553542,0.59918,3337.7,3337.6,1.273]
[1736963553937,1.95656,3338.0,3337.5,44.0078]
[1736963554143,0.5992,3337.6,3337.5,44.0078]
[1736963554445,0.5992,3337.6,3337.5,40.8]
[1736963554836,3.2078,3337.7,3336.7,6.73693795]
[1736963554837,0.59932,3336.9,3336.7,6.73693795]
[1736963555037,0.59934,3336.8,3336.7,4.4808]
[1736963555231,0.59934,3336.8,3336.7,42.073]
[1736963555542,0.59934,3336.8,3336.7,42.67236]
[1736963555739,3.6665,3337.3,3336.7,42.073]
[1736963555943,0.59934,3336.9,3336.8,0.59934]
[1736963556243,0.59934,3336.8,3336.7,42.073]
[1736963556937,0.59941,3336.4,3336.3,3.40948795]
[1736963557133,0.4494,3337.0,3336.3,1.7527]
[1736963557336,1.49836,3336.9,3336.5,0.59939]
[1736963557541,0.59939,3336.6,3336.5,40.8]
[1736963557935,0.59939,3336.6,3336.5,41.3994]
[1736963558138,0.59939,3336.6,3336.5,40.8]
[1736963558846,3.2078,3336.9,3336.8,0.59934]
[1736963559043,3.2078,3336.9,3336.8,1.87234]
[1736963559245,0.4669,3337.5,3336.8,1.87234]
[1736963559246,4.62418839,3337.6,3336.8,4.4808]
[1736963559446,0.59922,3337.5,3337.4,0.59922]
[1736963559645,4.62418839,3337.6,3337.5,0.59922]
[1736963559946,4.62418839,3337.6,3337.5,1.87222]
[1736963560149,5.22338839,3337.6,3337.5,1.273]
[1736963560746,3.2078,3337.6,3336.6,0.4559]
[1736963561046,0.59936,3336.7,3336.6,1.87238]
[1736963561248,0.59936,3336.7,3336.6,1.273]
[1736963561444,0.59939,3336.6,3336.5,1.273]
[1736963561647,0.59939,3336.6,3336.5,42.073]
[1736963561845,0.9302,3337.1,3336.1,3.2078]
[1736963562041,0.59939,3336.6,3336.5,0.59939]
[1736963562348,0.5994,3336.5,3336.4,0.5994]
[1736963562539,0.9302,3337.1,3336.4,0.59941]
[1736963562540,1.49827,3337.0,3336.4,0.59941]
[1736963562741,0.9302,3337.1,3336.3,42.073]
[1736963562742,3.2078,3336.5,3336.3,42.073]
[1736963562940,3.2078,3336.9,3336.3,42.073]
[1736963563140,3.80714,3336.9,3336.7,0.59935]
[1736963563441,3.2078,3336.9,3336.8,0.59934]
[1736963563645,4.62418839,3337.3,3336.5,3.2078]
[1736963563844,4.62418839,3337.3,3337.2,0.59927]
[1736963564144,4.62418839,3337.3,3337.2,1.87227]
[1736963564642,3.2078,3338.2,3337.2,42.073]
[1736963564643,0.59915,3337.9,3337.2,42.073]
[1736963564843,3.2078,3338.2,3337.5,1.49802]
[1736963565242,4.62418839,3338.3,3337.9,0.59913]
[1736963565243,0.59912,3338.1,3337.9,0.59913]
[1736963565544,0.59913,3338.0,3337.9,1.273]
[1736963566045,0.59911,3338.1,3338.0,0.59913]
[1736963566442,0.5991,3338.2,3338.1,0.59911]
[1736963566749,4.62418839,3338.5,3338.1,0.5991]
[1736963566944,0.59909,3338.2,3338.1,0.5991]
[1736963567752,4.62418839,3338.5,3337.9,1.273]
[1736963567951,0.59908,3338.3,3337.9,1.273]
[1736963568146,0.59911,3338.1,3338.0,1.08042]
[1736963568358,0.5991,3338.2,3338.1,0.5991]
[1736963569052,0.59911,3338.1,3338.0,1.08042]
[1736963569552,0.59911,3338.1,3338.0,2.35342]
[1736963569750,0.59911,3338.2,3338.1,0.5991]
[1736963569952,0.59911,3338.1,3338.0,2.35342]
[1736963570354,0.59911,3338.1,3338.0,1.273]
[1736963570554,0.59914,3337.9,3337.8,1.273]
[1736963571752,5.22332839,3337.9,3337.8,1.273]
[1736963573050,4.62418839,3337.9,3337.8,1.273]
[1736963573247,4.62418839,3337.9,3337.8,9.80194795]
[1736963573454,4.62418839,3337.9,3337.8,4.80194795]
[1736963573950,4.62418839,3337.9,3337.8,45.60194795]
[1736963574649,0.59911,3338.1,3337.8,45.00278795]
[1736963574850,0.59911,3338.1,3338.0,0.59913]
[1736963575053,0.59913,3338.0,3337.9,0.59914]
[1736963575348,0.59914,3337.9,3337.8,42.073]
[1736963575554,0.59921,3337.6,3337.4,3.41868795]
[1736963575754,0.59921,3337.6,3337.5,1.87221]
[1736963576051,3.2078,3338.2,3337.0,2.92978795]
[1736963576246,3.2078,3337.8,3337.0,3.2078]
[1736963576455,1.49814,3337.3,3336.8,4.67437002]
[1736963576657,0.59932,3336.9,3336.8,4.67437002]
[1736963576848,0.59938,3336.6,3336.5,1.87239]
[1736963577456,0.59938,3336.6,3336.5,1.273]
[1736963577650,3.2078,3337.0,3336.6,0.59936]
[1736963577844,0.59936,3336.7,3336.6,0.59936]
[1736963578050,7.83198839,3337.0,3336.6,0.59936]
[1736963578250,7.83198839,3337.0,3336.5,1.273]
[1736963578450,0.59937,3336.7,3336.5,1.87238]
[1736963578959,7.83198839,3337.0,3336.5,1.87238]
[1736963579159,0.59938,3336.7,3336.5,1.87238]
[1736963579456,0.59937,3336.7,3336.5,1.87238]
[1736963579762,7.83198839,3337.0,3336.5,1.273]
[1736963579954,0.59936,3336.7,3336.6,0.59937]
[1736963580149,0.59935,3336.8,3336.5,1.273]
[1736963580460,7.83198839,3337.0,3336.5,1.273]
[1736963580653,7.83198839,3337.0,3336.6,40.8]
[1736963580858,0.59934,3336.9,3336.7,0.59935]
[1736963581261,7.83198839,3337.1,3336.6,41.39937]
[1736963581449,0.59936,3336.7,3336.6,40.8]
[1736963581654,0.59936,3336.7,3336.6,41.39938]
[1736963581958,0.59936,3336.7,3336.6,40.8]
[1736963582356,0.59936,3336.7,3336.4,2.3527]
[1736963582357,0.5994,3336.5,3336.4,1.7533]
[1736963582763,0.5994,3336.5,3336.4,42.5533]
[1736963582958,0.5994,3336.5,3336.4,40.8]
[1736963583459,0.59942,3336.4,3335.9,1.284]
[1736963583663,0.59942,3336.4,3336.0,2.92978795]
[1736963583856,0.59941,3336.5,3336.4,0.59941]
[1736963584162,3.2078,3336.7,3336.1,40.8]
[1736963584350,3.2078,3336.7,3336.1,41.39946]
[1736963584551,0.59945,3336.2,3336.1,41.39946]
[1736963584769,0.59945,3336.2,3336.1,40.8]
[1736963585061,0.59945,3336.2,3333.5,17.82955872]
[1736963585062,0.59963,3335.2,3334.9,7.04092994]
[1736963585456,3.2078,3335.6,3334.9,49.12492994]
[1736963585661,0.4735,3335.8,3335.7,0.59954]
[1736963585862,4.70624,3336.7,3335.7,0.59954]
[1736963585863,1.05788,3336.1,3335.7,0.59954]
[1736963586062,0.4584,3336.1,3335.5,1.284]
[1736963586364,0.59958,3335.5,3335.2,0.59962]
[1736963586565,3.2078,3335.9,3335.0,4.1465]
[1736963586765,0.59955,3335.7,3335.4,0.59958]
[1736963586971,0.59955,3335.7,3335.5,0.59957]
[1736963587173,1.07614,3335.8,3335.4,0.59958]
[1736963587470,1.07614,3335.8,3335.6,0.59954]
[1736963587471,0.4766,3335.8,3335.6,0.59954]
[1736963587860,0.4766,3335.8,3335.3,1.284]
[1736963588063,0.59958,3335.5,3335.3,1.284]
[1736963588371,0.4766,3335.8,3335.7,0.59954]
[1736963588666,0.4766,3335.8,3335.6,0.59956]
[1736963589066,0.4766,3335.8,3335.5,3.80737]
[1736963589262,0.4766,3335.8,3335.5,3.2078]
[1736963589764,0.4766,3335.8,3335.5,1.284]
[1736963589965,0.4766,3335.8,3335.6,0.59955]
[1736963590369,1.07612,3335.8,3335.7,40.8]
[1736963590674,1.07612,3335.8,3335.5,0.59958]
[1736963590675,0.4766,3335.8,3335.5,0.59958]
[1736963590874,0.4766,3335.8,3335.4,1.284]
[1736963591068,0.59949,3336.0,3335.7,0.59954]
[1736963591267,1.09079,3336.0,3335.7,0.59954]
[1736963591565,1.09079,3336.0,3335.5,44.0078]
[1736963591566,3.80724,3336.3,3336.1,0.59946]
[1736963591765,5.15427365,3336.5,3336.4,0.59941]
[1736963592064,5.15427365,3336.5,3336.0,3.2078]
[1736963592065,5.15427365,3336.5,3336.2,0.59944]
[1736963592270,0.59943,3336.3,3336.2,0.59944]
[1736963592464,1.49875,3336.0,3335.0,0.59965]
[1736963592665,0.59946,3336.2,3334.8,4.67437002]
[1736963592666,0.59968,3334.9,3334.8,4.67437002]
[1736963592970,0.59968,3334.9,3334.8,1.71337002]
[1736963594363,4.66897365,3335.1,3334.5,0.59974]
[1736963594566,3.2078,3335.0,3334.4,2.93896311]
[1736963594866,0.59971,3334.8,3334.6,0.59973]
[1736963595964,3.2078,3335.0,3334.4,3.53873311]
[1736963596164,3.2078,3335.0,3334.4,2.93896311]
[1736963596165,0.59976,3334.5,3334.4,2.93896311]
[1736963597063,3.2078,3335.0,3334.4,2.93896311]
[1736963597272,3.2078,3335.0,3334.5,0.9463]
[1736963597475,3.2078,3335.0,3334.5,1.4049]
[1736963597664,3.2078,3335.0,3334.6,42.084]
[1736963597864,3.2078,3335.0,3334.9,0.59968]
[1736963598669,0.59963,3335.2,3334.6,44.0078]
[1736963598870,0.59966,3335.1,3334.9,1.88367]
[1736963599067,0.59967,3335.0,3334.9,1.88367]
[1736963599266,0.59961,3335.3,3334.9,1.88367]
[1736963599466,0.59961,3335.3,3335.0,0.59966]
[1736963599670,0.59965,3335.1,3335.0,0.59966]
[1736963600067,3.2078,3335.4,3334.6,44.0078]
[1736963600269,6.13758795,3335.4,3334.6,40.8]
[1736963600570,0.59966,3335.1,3334.9,0.59967]
[1736963600771,0.59966,3335.1,3335.0,0.59967]
[1736963600970,0.59966,3335.1,3334.7,2.2116]
[1736963601173,3.2078,3335.4,3334.7,2.2116]
[1736963601174,3.2078,3335.4,3335.0,0.59965]
[1736963601772,0.59972,3334.7,3334.6,44.0078]
[1736963601972,0.59972,3334.7,3334.6,40.8]
[1736963602174,0.59972,3334.7,3334.6,42.084]
[1736963602577,0.59972,3334.7,3334.6,40.8]
[1736963602872,0.59974,3334.6,3334.5,1.7426]
[1736963603174,0.59974,3334.6,3334.5,0.4586]
[1736963603770,3.2078,3334.9,3334.4,2.93896311]
[1736963603969,0.59976,3334.5,3334.4,2.93896311]
[1736963605173,0.59976,3334.5,3334.4,3.53873311]
[1736963605372,3.2078,3334.9,3334.4,2.93896311]
[1736963605580,0.59976,3334.5,3334.4,3.53873311]
[1736963606279,3.2078,3334.9,3334.4,2.93896311]
[1736963606473,0.5997,3334.8,3334.7,0.59972]
[1736963606675,3.2078,3334.9,3334.4,2.93896311]
[1736963607074,0.59972,3334.7,3334.6,0.59972]
[1736963607267,0.59976,3334.5,3334.4,2.93896311]
[1736963609183,0.59972,3334.7,3334.6,0.59973]
[1736963609478,0.59971,3334.8,3334.4,2.93896311]
[1736963609682,0.59972,3334.7,3334.6,0.59973]
[1736963609872,0.59972,3334.7,3334.4,2.93896311]
[1736963609873,0.59971,3334.8,3334.7,0.59971]
[1736963610272,3.2078,3335.4,3334.5,3.2078]
[1736963610480,0.59964,3335.2,3334.8,0.5997]
[1736963610681,0.59964,3335.2,3334.7,1.49931]
[1736963610682,0.59964,3335.2,3335.1,0.59965]
[1736963610885,0.59967,3335.0,3334.9,1.7724]
[1736963611792,0.59967,3335.0,3334.9,0.4884]
[1736963612478,0.5997,3334.8,3334.7,1.296]
[1736963614982,3.2078,3335.0,3334.5,0.59975]
[1736963615188,0.59974,3334.6,3334.5,1.89575]
[1736963615974,0.59976,3334.5,3334.4,3.53871311]
[1736963616473,0.59975,3334.6,3334.5,0.59974]
[1736963616686,0.59973,3334.7,3334.6,0.59972]
[1736963616885,0.59972,3334.8,3334.7,0.59971]
[1736963617078,0.59973,3334.7,3334.6,0.59972]
[1736963617275,0.59975,3334.6,3334.5,0.59974]
[1736963617479,0.59974,3334.7,3334.6,0.59973]
[1736963617680,3.2078,3335.0,3334.4,43.73896311]
[1736963617880,0.59971,3334.8,3334.7,0.59971]
[1736963618091,3.2078,3335.0,3334.4,43.73896311]
[1736963618385,3.2078,3335.5,3334.7,3.2078]
[1736963618579,0.59966,3335.1,3335.0,0.59965]
[1736963619392,4.70677,3335.5,3334.7,3.2078]
[1736963619393,0.5997,3334.8,3334.7,3.2078]
[1736963619687,0.5997,3334.8,3334.7,3.80752]
[1736963619979,0.5997,3334.8,3334.7,3.2078]
[1736963620181,0.59972,3334.7,3334.6,0.4791]
[1736963620580,0.59972,3334.7,3334.6,41.87884]
[1736963620977,3.2078,3334.9,3334.6,41.2791]
[1736963621174,0.59972,3334.7,3334.6,41.87882]
[1736963621789,3.2078,3334.9,3334.6,41.2791]
[1736963622289,0.59972,3334.7,3334.6,41.87884]
[1736963622490,0.59971,3334.8,3334.7,0.59971]
[1736963623083,3.2078,3334.9,3334.6,41.2791]
[1736963623290,3.80749,3334.9,3334.8,0.5997]
[1736963623483,3.19490344,3334.8,3334.4,2.93896311]
[1736963623687,0.59976,3334.5,3334.4,2.93896311]
[1736963623983,0.59976,3334.5,3334.4,3.53873311]
[1736963624186,0.59976,3334.5,3334.4,2.93896311]
[1736963625384,3.80756,3334.5,3334.4,2.93896311]
[1736963625693,7.00617696,3334.5,3334.4,2.93896311]
[1736963627481,7.46107696,3334.5,3334.4,2.93896311]
[1736963627892,13.31768546,3334.5,3334.4,2.93896311]
[1736963628287,10.1190685,3334.5,3334.4,2.93896311]
[1736963628688,5.8566085,3334.5,3334.4,3.53873311]
[1736963628884,6.4563685,3334.5,3334.4,3.53873311]
[1736963629299,0.59976,3334.5,3334.4,3.53873311]
[1736963629490,6.4563585,3334.6,3334.5,0.59976]
[1736963629795,5.8566085,3334.6,3334.5,0.59976]
[1736963629991,5.8566085,3334.6,3334.5,1.89576]
[1736963630387,5.8566085,3335.0,3334.5,1.296]
[1736963630593,4.67587699,3334.8,3334.7,0.59972]
[1736963630999,4.67587699,3334.8,3334.5,1.296]
[1736963631287,0.59974,3334.6,3334.5,1.89575]
[1736963631697,0.59974,3334.6,3334.5,1.296]
[1736963631893,0.59974,3334.6,3334.5,1.89576]
[1736963632090,0.59972,3334.7,3334.5,1.296]
[1736963632400,4.67587699,3334.9,3334.5,1.296]
[1736963632599,4.67587699,3334.7,3334.6,0.59974]
[1736963634094,0.59969,3334.9,3334.8,0.59968]
[1736963634796,7.88367699,3335.0,3334.9,0.59968]
[1736963634797,5.27554699,3335.0,3334.9,0.59968]
[1736963634997,4.67587699,3335.0,3334.5,1.296]
[1736963635199,5.27557699,3334.9,3334.8,0.5997]
[1736963635597,0.59971,3334.8,3334.7,0.59972]
[1736963635796,4.67587699,3334.9,3334.8,0.5997]
[1736963636911,0.59971,3334.8,3334.7,0.5997]
[1736963637101,3.2078,3334.9,3334.8,0.4601]
[1736963637408,3.80748,3334.9,3334.8,1.0598]
[1736963637613,3.80748,3334.9,3334.8,41.8598]
[1736963637811,3.2078,3334.9,3334.8,41.8598]
[1736963638007,5.8566085,3335.0,3334.9,0.59968]
[1736963638212,5.8566085,3335.0,3334.9,1.06368]
[1736963638517,0.59976,3334.5,3334.4,2.93896311]
[1736963638911,3.80755,3334.6,3334.4,2.93896311]
[1736963639310,3.80755,3334.6,3334.5,0.455]
[1736963639506,3.80754,3334.6,3334.5,0.455]
[1736963639807,0.59976,3334.5,3334.4,2.93896311]
[1736963641308,6.7068897,3334.5,3334.4,0.07901311]
[1736963641510,6.7068897,3334.5,3334.4,3.11e-06]
[1736963641815,0.59994,3333.5,3333.4,0.4575]
[1736963643514,5.27955371,3333.5,3333.4,0.4575]
[1736963643822,1.4999,3333.4,3332.3,7.04092994]
[1736963644022,0.60005,3332.9,3332.7,0.60007]
[1736963644213,0.60005,3332.9,3332.5,2.92978795]
[1736963644214,3.2078,3333.1,3332.4,3.6863]
[1736963644417,3.2078,3333.1,3332.4,1.7995]
[1736963644719,3.2078,3333.1,3332.8,40.8]
[1736963644923,0.60004,3332.9,3332.8,40.8]
[1736963645220,4.67961371,3333.1,3332.8,40.8]
[1736963645615,0.60003,3333.0,3332.8,40.8]
[1736963645817,3.2078,3332.9,3331.9,0.60021]